bitfinex/quotes_SOLUSD_20220228
["timestamp","ask_amount","ask_price","bid_price","bid_amount"]
[1646013041369,17.3691,86.47,86.381,6.0]
[1646013042795,118.54678921,86.469,86.381,6.0]
[1646013042993,17.3742,86.45,86.38,5.42]
[1646013043194,18.83648541,86.45,86.38,5.42]
[1646013044202,1.77603607,86.449,86.38,5.42]
[1646013044395,17.3762,86.44,86.38,5.42]
[1646013044598,1.42773139,86.439,86.38,5.42]
[1646013044796,7.03578921,86.448,86.38,5.42]
[1646013045003,25.30798921,86.459,86.38,5.42]
[1646013045198,1.71606463,86.458,86.38,5.42]
[1646013045396,2.74678921,86.473,86.38,5.42]
[1646013045597,4.33,86.476,86.382,115.8]
[1646013045997,4.33,86.476,86.383,6.0]
[1646013046199,7.07678921,86.476,86.381,6.0]
[1646013046498,7.07678921,86.476,86.38,5.42]
[1646013046696,6.0,86.475,86.381,6.0]
[1646013046898,7.86580681,86.475,86.381,6.0]
[1646013047298,30.89430681,86.475,86.381,6.0]
[1646013047498,17.3694,86.47,86.381,6.0]
[1646013047698,1.93197696,86.469,86.381,6.0]
[1646013049098,1.93197696,86.469,86.38,6.0]
[1646013050300,6.0,86.468,86.38,6.0]
[1646013050503,17.3713,86.46,86.38,6.0]
[1646013050702,17.3713,86.46,86.379,24.014]
[1646013050703,1.72820246,86.458,86.379,24.014]
[1646013050901,4.043,86.457,86.379,24.014]
[1646013051405,6.78978921,86.457,86.379,24.014]
[1646013051602,2.74678921,86.456,86.379,24.014]
[1646013051802,4.164,86.455,86.379,24.014]
[1646013052402,1.93102774,86.457,86.379,24.014]
[1646013053704,17.3733,86.45,86.379,24.014]
[1646013054906,6.0,86.449,86.379,24.014]
[1646013056409,7.97358362,86.449,86.379,24.014]
[1646013057410,17.3753,86.44,86.379,24.014]
[1646013057615,1.61075836,86.439,86.379,24.014]
[1646013058409,17.3772,86.43,86.379,24.014]
[1646013058614,121.98326416,86.429,86.345,22.8114]
[1646013058811,1.90594783,86.428,86.345,22.8114]
[1646013059209,4.293,86.439,86.345,22.8114]
[1646013059210,25.6165215,86.439,86.368,24.1371]
[1646013059413,5.7431775,86.438,86.378,55.55612618]
[1646013059809,1.4461775,86.438,86.378,55.55612618]
[1646013060011,1.4461775,86.438,86.378,79.69322618]
[1646013060410,24.1656,86.439,86.378,79.69322618]
[1646013061411,6.0,86.438,86.378,79.69322618]
[1646013063514,7.65909451,86.438,86.378,79.69322618]
[1646013068814,115.8,86.437,86.378,79.69322618]
[1646013069018,1.51060907,86.436,86.378,79.69322618]
[1646013069418,24.1656,86.439,86.378,79.69322618]
[1646013070920,6.0,86.438,86.378,79.69322618]
[1646013073727,7.7705798,86.438,86.378,79.69322618]
[1646013075525,6.0,86.438,86.378,79.69322618]
[1646013075726,1.912039,86.457,86.378,79.69322618]
[1646013075945,24.1343,86.463,86.379,6.0]
[1646013076148,24.1343,86.463,86.379,121.8]
[1646013076149,1.73533176,86.462,86.379,121.8]
[1646013077447,17.3715,86.46,86.379,121.8]
[1646013077648,1.63170304,86.459,86.379,121.8]
[1646013078247,1.63170304,86.459,86.379,6.0]
[1646013078647,1.63170304,86.459,86.379,121.8]
[1646013078848,6.0,86.458,86.379,121.8]
[1646013080149,6.0,86.458,86.379,6.0]
[1646013081450,6.0,86.458,86.379,121.8]
[1646013081650,6.0,86.458,86.379,6.0]
[1646013083152,6.0,86.458,86.378,79.69322618]
[1646013083351,28.42478824,86.458,86.378,79.69322618]
[1646013083555,1.4887466,86.457,86.378,79.69322618]
[1646013084454,1.4887466,86.457,86.378,24.1371]
[1646013084655,115.8,86.449,86.378,24.1371]
[1646013084860,115.8,86.447,86.356,22.7989]
[1646013085054,115.8,86.445,86.356,22.7989]
[1646013085255,115.8,86.439,86.356,22.7989]
[1646013085456,1.44469137,86.438,86.356,22.7989]
[1646013085655,1.44469137,86.438,86.378,48.57939668]
[1646013085855,17.3782,86.43,86.378,48.57939668]
[1646013086057,1.5273751,86.429,86.378,48.57939668]
[1646013086456,4.27416431,86.429,86.378,48.57939668]
[1646013086759,2.74678921,86.428,86.378,48.57939668]
[1646013086957,6.0,86.427,86.378,48.07939668]
[1646013087359,2.74678921,86.426,86.378,48.07939668]
[1646013088359,17.3798,86.42,86.378,48.07939668]
[1646013088560,1.62791439,86.419,86.378,48.07939668]
[1646013088961,1.44444867,86.419,86.378,48.07939668]
[1646013091265,6.0,86.418,86.378,48.07939668]
[1646013093168,2.74678921,86.426,86.378,48.07939668]
[1646013093369,1.9266686,86.439,86.378,48.07939668]
[1646013093571,6.0,86.435,86.379,23.7769]
[1646013094369,17.3773,86.43,86.379,23.7769]
[1646013094566,1.90663125,86.429,86.379,23.7769]
[1646013094766,4.65342046,86.429,86.378,48.07939668]
[1646013096566,2.74678921,86.428,86.378,48.07939668]
[1646013098470,6.0,86.427,86.378,48.07939668]
[1646013098869,2.74678921,86.426,86.378,48.07939668]
[1646013099371,17.3797,86.42,86.356,22.7989]
[1646013099669,1.46473886,86.419,86.356,22.7989]
[1646013099872,2.74678921,86.419,86.302,24.655]
[1646013100070,4.19804352,86.418,86.302,24.655]
[1646013100269,1.48646212,86.416,86.357,52.88990351]
[1646013100769,115.8,86.414,86.357,52.88990351]
[1646013100969,14.05,86.41,86.357,52.88990351]
[1646013101170,117.48608721,86.409,86.357,52.88990351]
[1646013101375,1.59077861,86.408,86.357,52.88990351]
[1646013101570,17.3837,86.4,86.357,52.88990351]
[1646013101770,1.73545349,86.399,86.357,52.88990351]
[1646013102172,4.4822427,86.399,86.357,52.88990351]
[1646013102573,2.74678921,86.398,86.357,52.88990351]
[1646013102973,6.0,86.397,86.357,52.88990351]
[1646013103372,2.74678921,86.396,86.302,24.655]
[1646013103573,17.3854,86.39,86.302,24.655]
[1646013103774,1.84779231,86.389,86.303,22.8272]
[1646013103973,4.59458152,86.389,86.303,22.8272]
[1646013104276,2.74678921,86.388,86.303,22.8272]
[1646013104674,4.62108947,86.388,86.303,22.8272]
[1646013105075,2.74678921,86.387,86.303,22.8272]
[1646013105474,2.74678921,86.387,86.333,43.36063395]
[1646013105675,2.74678921,86.387,86.346,51.76535439]
[1646013106077,2.74678921,86.387,86.36,42.7160429]
[1646013106575,2.74678921,86.387,86.303,22.8272]
[1646013107477,2.74678921,86.404,86.304,2.50706366]
[1646013107680,2.74678921,86.404,86.378,46.84096299]
[1646013109478,6.0,86.403,86.378,46.84096299]
[1646013109901,2.74678921,86.402,86.378,46.84096299]
[1646013110500,2.74678921,86.402,86.378,3.03219997]
[1646013111102,2.74678921,86.402,86.378,1.03219997]
[1646013111300,17.3831,86.4,86.304,2.50706366]
[1646013111501,1.45714638,86.399,86.349,59.58107412]
[1646013111701,4.20393559,86.399,86.349,59.58107412]
[1646013111902,27.51157745,86.398,86.3,17.3839]
[1646013112100,1.59912243,86.397,86.3,17.3839]
[1646013112301,4.34591164,86.397,86.3,17.3839]
[1646013112501,1.59912243,86.397,86.303,24.2502]
[1646013112703,2.74678921,86.396,86.303,24.2502]
[1646013112904,6.0,86.395,86.347,45.12337124]
[1646013113301,2.74678921,86.394,86.303,24.2502]
[1646013113501,17.3864,86.39,86.303,24.2502]
[1646013113702,1.71229488,86.389,86.303,24.2502]
[1646013113901,120.25908409,86.389,86.303,24.2502]
[1646013114103,1.76841054,86.388,86.303,24.2502]
[1646013114304,4.51519975,86.388,86.325,45.9499022]
[1646013114505,115.8,86.386,86.325,45.9499022]
[1646013114704,1.81461889,86.385,86.325,45.9499022]
[1646013114904,119.19274678,86.384,86.325,45.9499022]
[1646013115105,1.80083172,86.383,86.325,45.9499022]
[1646013115305,115.8,86.382,86.325,45.9499022]
[1646013115508,1.58423034,86.381,86.325,45.9499022]
[1646013115707,4.33101955,86.381,86.325,45.9499022]
[1646013115906,4.33101955,86.381,86.303,24.2502]
[1646013116108,118.54678921,86.38,86.303,24.2502]
[1646013116308,1.67727848,86.379,86.303,24.2502]
[1646013116509,4.42406769,86.379,86.377,28.63229331]
[1646013116707,118.54678921,86.378,86.367,163.37089415]
[1646013116908,1.517506,86.377,86.367,163.37089415]
[1646013117108,115.8,86.376,86.367,163.37089415]
[1646013117311,2.0,86.375,86.367,163.37089415]
[1646013117508,3.53550148,86.375,86.367,163.37089415]
[1646013117710,1.36933416,86.373,86.367,158.27573669]
[1646013117909,1.36933416,86.373,86.367,9.91780285]
[1646013118112,115.8,86.371,86.367,9.91780285]
[1646013118310,115.8,86.369,86.292,24.0696]
[1646013118511,2.74678921,86.366,86.292,24.0696]
[1646013118911,115.8,86.364,86.292,24.0696]
[1646013119211,115.8,86.362,86.292,24.0696]
[1646013119510,17.79112137,86.361,86.299,58.32319654]
[1646013119809,17.79112137,86.361,86.312,50.28713492]
[1646013119810,20.53791058,86.361,86.312,50.28713492]
[1646013120212,20.53791058,86.361,86.325,45.43670089]
[1646013120412,17.79112137,86.361,86.292,24.0696]
[1646013121412,17.79112137,86.361,86.329,49.43088708]
[1646013121611,17.0307,86.362,86.329,49.43088708]
[1646013122012,17.0307,86.362,86.343,52.32953498]
[1646013122214,2.0,86.361,86.292,24.0696]
[1646013123112,2.0,86.361,86.27,17.3908]
[1646013123315,2.0,86.361,86.329,50.949818]
[1646013123512,2.74678921,86.36,86.329,50.949818]
[1646013123712,6.0,86.359,86.342,57.79612033]
[1646013123913,6.0,86.359,86.274,2.78183224]
[1646013124213,6.0,86.359,86.275,2.5168373]
[1646013124414,6.0,86.359,86.276,2.78936141]
[1646013124613,2.0,86.361,86.277,2.93100305]
[1646013124813,6.0,86.36,86.326,58.94168623]
[1646013125213,8.74678921,86.36,86.263,2.39838661]
[1646013125414,2.74678921,86.359,86.263,2.39838661]
[1646013126014,118.54678921,86.359,86.263,2.39838661]
[1646013126216,118.54678921,86.359,86.313,58.29061516]
[1646013126416,6.0,86.36,86.313,58.29061516]
[1646013126417,2.74678921,86.358,86.313,58.29061516]
[1646013126615,2.74678921,86.358,86.328,52.06930327]
[1646013127016,2.74678921,86.358,86.263,2.39838661]
[1646013127416,6.0,86.357,86.262,70.4027]
[1646013127617,115.8,86.356,86.262,70.4027]
[1646013127819,118.54678921,86.356,86.355,182.3]
[1646013128016,118.54678921,86.356,86.355,79.7653]
[1646013128217,143.83417745,86.356,86.355,29.7653]
[1646013128420,133.03225346,86.356,86.355,29.7653]
[1646013128818,17.23225346,86.356,86.355,29.7653]
[1646013129716,14.48546425,86.356,86.355,29.7653]
[1646013129917,6.0,86.357,86.355,29.7653]
[1646013130518,2.0,86.361,86.355,29.7653]
[1646013130721,6.0,86.36,86.355,29.7653]
[1646013135424,8.74678921,86.36,86.355,29.7653]
[1646013135626,29.53338824,86.359,86.355,29.7653]
[1646013135826,25.28738824,86.359,86.355,29.7653]
[1646013136028,28.03417745,86.358,86.355,29.7653]
[1646013136426,2.74678921,86.357,86.355,29.7653]
[1646013139331,6.0,86.356,86.355,29.7653]
[1646013140332,8.74678921,86.356,86.355,29.7653]
[1646013142736,2.74678921,86.356,86.355,29.7653]
[1646013143234,8.74678921,86.356,86.355,29.7653]
[1646013143838,124.54678921,86.356,86.355,29.7653]
[1646013145237,164.02804465,86.356,86.355,29.7653]
[1646013145437,164.02804465,86.356,86.355,27.01851079]
[1646013145636,161.28125544,86.356,86.355,27.01851079]
[1646013145836,164.02804465,86.356,86.355,27.01851079]
[1646013149540,164.02804465,86.356,86.355,17.01851079]
[1646013149740,168.36904465,86.356,86.355,17.01851079]
[1646013150141,17.4,86.32,86.27,23.0438]
[1646013150343,115.8,86.339,86.271,24.0844]
[1646013150542,2.74678921,86.319,86.271,24.0844]
[1646013150743,118.54678921,86.319,86.271,24.0844]
[1646013150961,6.0,86.318,86.271,24.0844]
[1646013151162,115.8,86.317,86.271,24.0844]
[1646013151364,16.94065641,86.317,86.271,24.0844]
[1646013151564,14.1938672,86.316,86.271,24.0844]
[1646013151761,16.94065641,86.316,86.271,24.0844]
[1646013151961,39.48125544,86.316,86.271,24.0844]
[1646013152162,2.74678921,86.315,86.271,24.0844]
[1646013152364,132.74065641,86.315,86.271,24.0844]
[1646013152564,17.4037,86.3,86.271,24.0844]
[1646013152764,17.4037,86.3,86.25,48.52905694]
[1646013152964,17.4037,86.3,86.221,81.0427181]
[1646013153163,2.74678921,86.299,86.221,78.5961]
[1646013153364,2.74678921,86.299,86.222,46.3662]
[1646013154165,2.74678921,86.299,86.223,56.71620813]
[1646013154567,17.4058,86.29,86.223,56.71620813]
[1646013156566,17.4076,86.28,86.223,56.71620813]
[1646013157567,6.0,86.279,86.223,56.71620813]
[1646013160972,4.289,86.298,86.224,2.69540588]
[1646013161174,72.0616,86.32,86.224,2.69540588]
[1646013161372,4.289,86.319,86.225,6.0]
[1646013161674,58.0116,86.32,86.225,6.0]
[1646013161875,42.64678824,86.316,86.225,6.0]
[1646013162072,4.289,86.315,86.225,6.0]
[1646013162472,25.28738824,86.314,86.225,6.0]
[1646013162672,4.289,86.313,86.224,2.69540588]
[1646013162874,17.4032,86.3,86.224,2.69540588]
[1646013163274,4.289,86.299,86.224,2.69540588]
[1646013163675,117.67434959,86.298,86.223,56.71620813]
[1646013163875,17.4072,86.28,86.223,56.71620813]
[1646013164077,4.288,86.279,86.222,46.3662]
[1646013164378,25.28738824,86.279,86.222,46.3662]
[1646013164574,115.8,86.289,86.222,46.3662]
[1646013164575,38.32117745,86.278,86.222,46.3662]
[1646013164775,115.8,86.277,86.222,46.3662]
[1646013164974,4.285,86.276,86.222,46.3662]
[1646013165175,4.285,86.276,86.189,23.9653]
[1646013165176,31.10819667,86.276,86.189,23.9653]
[1646013165377,1.59995135,86.274,86.19,46.9335]
[1646013165579,4.285,86.273,86.19,46.9335]
[1646013165782,115.8,86.272,86.19,46.9335]
[1646013165980,14.05,86.26,86.19,46.9335]
[1646013166177,4.284,86.259,86.191,45.95313417]
[1646013166578,32.31817745,86.259,86.191,45.95313417]
[1646013166780,28.03417745,86.258,86.191,45.95313417]
[1646013166981,4.283,86.257,86.191,45.95313417]
[1646013167279,32.31717745,86.257,86.191,45.95313417]
[1646013167479,17.4181,86.23,86.191,45.95313417]
[1646013168380,6.0,86.229,86.191,45.95313417]
[1646013168579,6.0,86.229,86.19,46.9335]
[1646013169380,4.282,86.255,86.19,46.9335]
[1646013169586,6.0,86.254,86.191,59.49555497]
[1646013169783,31.28738824,86.254,86.191,59.49555497]
[1646013170583,17.4138,86.25,86.191,59.49555497]
[1646013173086,4.288,86.249,86.191,59.49555497]
[1646013173284,17.4153,86.24,86.191,59.49555497]
[1646013174888,6.0,86.239,86.191,59.49555497]
[1646013175485,6.0,86.239,86.19,46.9335]
[1646013175686,7.69256666,86.239,86.19,46.9335]
[1646013175885,17.4176,86.23,86.19,46.9335]
[1646013176686,4.304,86.229,86.19,46.9335]
[1646013177087,2.74678921,86.228,86.19,46.9335]
[1646013177488,17.4194,86.22,86.19,46.9335]
[1646013177887,17.4194,86.22,86.19,23.2684]
[1646013178888,2.74678921,86.219,86.19,23.2684]
[1646013179088,17.4194,86.22,86.156,24.7938]
[1646013179290,17.4194,86.22,86.157,6.0]
[1646013179693,6.0,86.219,86.158,52.91967654]
[1646013179993,6.0,86.219,86.159,23.405]
[1646013180490,17.0284,86.233,86.159,23.405]
[1646013180690,6.0,86.232,86.159,23.405]
[1646013180890,6.0,86.231,86.159,23.405]
[1646013181090,4.291,86.23,86.159,23.405]
[1646013181289,17.4194,86.22,86.159,23.405]
[1646013183390,6.0,86.219,86.159,23.405]
[1646013183591,17.4162,86.24,86.159,23.405]
[1646013183792,6.0,86.239,86.16,8.2575386]
[1646013183991,6.0,86.239,86.16,2.2575386]
[1646013186896,4.293,86.238,86.16,2.2575386]
[1646013187298,4.29,86.239,86.16,2.2575386]
[1646013187798,7.03678921,86.239,86.16,2.2575386]
[1646013188400,2.74678921,86.238,86.159,23.405]
[1646013188597,4.287,86.237,86.159,23.405]
[1646013189003,2.74678921,86.236,86.159,23.405]
[1646013189304,4.284,86.235,86.159,23.405]
[1646013189503,30.92148161,86.235,86.159,23.405]
[1646013189703,26.81661,86.234,86.159,23.405]
[1646013190006,8.78711733,86.233,86.159,23.405]
[1646013190205,1.57490362,86.232,86.159,23.405]
[1646013190404,4.277,86.231,86.159,23.405]
[1646013190604,17.4194,86.22,86.159,23.405]
[1646013192322,17.4194,86.22,86.159,22.905]
[1646013192827,2.74678921,86.219,86.159,22.905]
[1646013193023,4.266,86.218,86.159,22.905]
[1646013194424,6.0,86.217,86.159,22.905]
[1646013195828,6.0,86.216,86.159,22.905]
[1646013196030,17.4194,86.22,86.159,22.905]
[1646013196228,6.0,86.219,86.159,22.905]
[1646013196430,6.0,86.218,86.159,22.905]
[1646013196730,4.259,86.239,86.159,22.905]
[1646013196928,6.0,86.238,86.159,22.905]
[1646013197128,4.281,86.237,86.159,22.905]
[1646013197329,8.85589981,86.237,86.159,22.905]
[1646013197732,2.74678921,86.236,86.159,22.905]
[1646013197930,4.303,86.235,86.159,22.905]
[1646013198230,2.74678921,86.234,86.159,22.905]
[1646013198430,17.4176,86.23,86.159,22.405]
[1646013198930,10.45980459,86.229,86.159,22.405]
[1646013199231,2.74678921,86.228,86.159,22.405]
[1646013203137,4.252,86.227,86.159,22.405]
[1646013203437,4.288,86.243,86.159,22.405]
[1646013203642,4.324,86.244,86.16,6.0]
[1646013203840,2.74678921,86.242,86.16,6.0]
[1646013205241,6.0,86.241,86.16,6.0]
[1646013205741,6.0,86.241,86.159,22.405]
[1646013205942,2.74678921,86.24,86.159,22.405]
[1646013206140,0.24678921,86.24,86.16,6.0]
[1646013206343,2.74678921,86.251,86.171,115.8]
[1646013206542,109.30205854,86.302,86.173,115.8]
[1646013206740,24.44666569,86.309,86.174,2.76875146]
[1646013206941,24.44666569,86.309,86.176,115.8]
[1646013207141,22.8094,86.309,86.191,115.8]
[1646013207342,1.38090568,86.302,86.2,14.05]
[1646013207541,17.4054,86.29,86.21,14.05]
[1646013207742,6.0,86.289,86.212,59.27424439]
[1646013207942,6.0,86.289,86.213,6.0]
[1646013208144,7.39629719,86.289,86.212,59.27424439]
[1646013208844,23.3037,86.288,86.212,59.27424439]
[1646013209042,5.75454586,86.287,86.212,59.27424439]
[1646013210543,23.3037,86.288,86.212,59.27424439]
[1646013210743,4.291,86.307,86.212,59.27424439]
[1646013210942,23.9433,86.306,86.213,6.0]
[1646013211143,5.85353271,86.305,86.213,6.0]
[1646013211346,4.293,86.305,86.214,115.8]
[1646013211542,1.65584677,86.312,86.216,115.8]
[1646013211543,4.296,86.311,86.216,115.8]
[1646013211742,17.4017,86.31,86.231,57.69713669]
[1646013212745,10.297,86.309,86.232,6.0]
[1646013213746,4.297,86.309,86.232,6.0]
[1646013214049,6.0,86.308,86.232,6.0]
[1646013214246,22.8856,86.307,86.232,6.0]
[1646013214447,1.70628772,86.306,86.232,6.0]
[1646013215047,1.70628772,86.306,86.231,57.69713669]
[1646013215447,5.99928772,86.306,86.231,57.69713669]
[1646013216450,6.0,86.305,86.231,57.69713669]
[1646013216651,4.29,86.304,86.231,57.69713669]
[1646013216850,6.0,86.305,86.232,121.8]
[1646013217050,23.7312,86.33,86.232,121.8]
[1646013217249,6.0,86.329,86.232,121.8]
[1646013217449,6.0,86.329,86.233,2.56578906]
[1646013217648,6.0,86.329,86.236,2.71062992]
[1646013217851,6.0,86.329,86.25,14.05]
[1646013218048,6.0,86.329,86.252,59.37483325]
[1646013218248,4.286,86.328,86.253,6.0]
[1646013218470,5.8638324,86.328,86.252,59.37483325]
[1646013218649,23.0471,86.327,86.252,59.37483325]
[1646013218849,5.67581954,86.326,86.252,59.37483325]
[1646013219851,2.74678921,86.325,86.23,14.05]
[1646013220052,4.29,86.324,86.23,14.05]
[1646013220252,17.4016,86.31,86.23,14.05]
[1646013220453,1.55130397,86.308,86.23,14.05]
[1646013220655,4.295,86.307,86.2,14.05]
[1646013220856,4.295,86.307,86.22,53.94678958]
[1646013221457,1.76665451,86.289,86.2,31.4539]
[1646013221656,1.61423702,86.286,86.186,24.3183]
[1646013221858,4.292,86.285,86.187,29.5503]
[1646013222355,4.292,86.285,86.19,14.05]
[1646013222558,4.292,86.285,86.192,115.8]
[1646013222759,1.61423702,86.286,86.194,115.8]
[1646013222959,1.61423702,86.286,86.196,115.8]
[1646013223159,1.61423702,86.286,86.2,14.05]
[1646013223360,6.0,86.285,86.201,58.48170787]
[1646013223759,22.8271,86.288,86.254,61.78778766]
[1646013223958,1.69891942,86.305,86.254,61.78778766]
[1646013224863,1.69891942,86.305,86.255,23.6049]
[1646013225984,4.287,86.306,86.254,6.13949589]
[1646013226180,4.285,86.308,86.254,6.13949589]
[1646013226381,1.4362312,86.316,86.254,6.13949589]
[1646013226580,28.3624,86.315,86.254,6.13949589]
[1646013226779,17.4034,86.3,86.254,6.13949589]
[1646013226981,6.00970028,86.299,86.255,60.57544213]
[1646013227179,1.72170028,86.299,86.255,60.57544213]
[1646013227379,6.0,86.298,86.255,60.57544213]
[1646013227579,5.89394841,86.314,86.255,60.57544213]
[1646013227779,1.60094841,86.314,86.255,60.57544213]
[1646013228279,10.308,86.313,86.255,60.57544213]
[1646013228479,17.4013,86.31,86.254,6.13949589]
[1646013228779,1.68079504,86.307,86.254,6.13949589]
[1646013228981,4.322,86.306,86.254,6.13949589]
[1646013229380,1.36804864,86.305,86.254,6.13949589]
[1646013229583,4.329,86.304,86.254,6.13949589]
[1646013229786,5.96105556,86.304,86.237,47.20357191]
[1646013229983,23.1152,86.303,86.237,47.20357191]
[1646013230186,5.98214333,86.302,86.237,47.20357191]
[1646013230482,17.4035,86.3,86.237,47.20357191]
[1646013230682,5.72535433,86.299,86.237,47.20357191]
[1646013231282,5.72535433,86.299,86.222,24.7206]
[1646013231482,17.4085,86.28,86.233,1.9514514]
[1646013231781,1.44363847,86.279,86.233,1.9514514]
[1646013232385,1.55839462,86.298,86.233,1.9514514]
[1646013233585,17.4094,86.27,86.233,1.9514514]
[1646013233786,1.66430871,86.269,86.233,1.9514514]
[1646013234485,6.0,86.268,86.233,1.9514514]
[1646013234687,17.4114,86.26,86.233,1.9514514]
[1646013235084,1.84908694,86.259,86.233,1.9514514]
[1646013238588,17.4114,86.26,86.233,1.9514514]
[1646013238789,6.0,86.259,86.233,1.9514514]
[1646013240491,17.4114,86.26,86.233,1.9514514]
[1646013240691,24.0017,86.267,86.233,1.9514514]
[1646013240894,17.6424,86.28,86.233,1.9514514]
[1646013241091,6.0,86.279,86.233,24.5306514]
[1646013241493,6.0,86.278,86.233,24.5306514]
[1646013241693,1.6689349,86.28,86.233,24.5306514]
[1646013241892,6.0,86.279,86.233,24.5306514]
[1646013242092,1.8074137,86.28,86.233,24.5306514]
[1646013242295,6.0,86.279,86.233,24.5306514]
[1646013242493,6.0,86.279,86.233,81.40223604]
[1646013242794,7.61462239,86.279,86.233,81.40223604]
[1646013243393,7.61462239,86.279,86.233,24.5306514]
[1646013247000,17.4075,86.28,86.234,43.23714531]
[1646013247300,23.2999,86.297,86.234,43.23714531]
[1646013247501,4.296,86.296,86.234,43.23714531]
[1646013247899,23.2999,86.297,86.234,43.23714531]
[1646013250804,6.0,86.296,86.234,43.23714531]
[1646013251404,4.298,86.295,86.234,43.23714531]
[1646013252302,4.298,86.295,86.288,1.9514514]
[1646013252705,2.0,86.294,86.288,1.9514514]
[1646013252901,4.287,86.293,86.288,1.9514514]
[1646013253603,6.275,86.294,86.288,1.9514514]
[1646013254904,7.86791986,86.293,86.288,1.9514514]
[1646013255307,142.70736696,86.292,86.233,22.5792]
[1646013255504,17.4087,86.28,86.233,22.5792]
[1646013255705,5.81227945,86.279,86.187,4.636]
[1646013255904,115.8,86.278,86.209,23.8346]
[1646013256107,5.70140661,86.277,86.187,4.636]
[1646013256308,58.063,86.25,86.164,29.544]
[1646013256508,17.4194,86.22,86.164,24.906]
[1646013256708,4.207,86.219,86.157,22.9627]
[1646013256910,4.197,86.246,86.157,22.9627]
[1646013257107,28.6407003,86.23,86.132,23.0988]
[1646013257314,2.74678921,86.218,86.132,23.0988]
[1646013257911,17.4225,86.21,86.132,23.0988]
[1646013258508,23.5879,86.228,86.133,6.0]
[1646013258713,1.4933657,86.243,86.134,4.641]
[1646013258910,1.75809006,86.266,86.135,6.0]
[1646013259111,24.8537,86.267,86.15,14.05]
[1646013259309,4.293,86.288,86.152,58.47021555]
[1646013259511,1.74985486,86.308,86.154,115.8]
[1646013259709,1.74985486,86.308,86.153,13.21269539]
[1646013259710,4.3,86.307,86.157,3.0897797]
[1646013259911,58.0249,86.3,86.172,47.09219007]
[1646013260112,115.8,86.298,86.173,34.5338]
[1646013260311,5.68759447,86.297,86.173,37.28058921]
[1646013260513,1.82780121,86.294,86.173,72.02961148]
[1646013260812,115.8,86.295,86.174,2.74678921]
[1646013260813,1.50179964,86.269,86.174,2.74678921]
[1646013261016,115.8,86.289,86.175,10.639]
[1646013261212,115.8,86.287,86.175,4.639]
[1646013261415,115.8,86.285,86.173,23.8958]
[1646013261615,1.53623642,86.282,86.173,23.8958]
[1646013261814,4.277,86.281,86.173,23.8958]
[1646013262016,1.64252559,86.279,86.173,23.8958]
[1646013262218,1.47073849,86.249,86.173,23.8958]
[1646013262416,4.238,86.248,86.173,23.8958]
[1646013262615,2.74678921,86.248,86.173,23.8958]
[1646013263116,17.4137,86.25,86.173,23.8958]
[1646013263315,4.217,86.266,86.175,2.26307035]
[1646013263515,4.197,86.267,86.175,2.26307035]
[1646013263714,24.0067,86.268,86.176,6.0]
[1646013263919,24.0067,86.268,86.18,14.05]
[1646013264122,5.53185849,86.267,86.181,6.0]
[1646013266121,6.0,86.266,86.181,6.0]
[1646013266326,4.269,86.265,86.181,6.0]
[1646013267351,4.269,86.265,86.183,2.7758362]
[1646013267551,4.269,86.265,86.185,115.8]
[1646013267751,4.269,86.265,86.19,14.05]
[1646013267955,4.269,86.265,86.192,115.8]
[1646013268152,6.0,86.266,86.194,115.8]
[1646013268358,6.0,86.266,86.196,115.8]
[1646013268552,6.0,86.266,86.201,115.8]
[1646013268752,4.33,86.293,86.202,6.0]
[1646013268950,6.0,86.292,86.203,24.5617]